[Event "1st Festival ChessInLyon-GM 2024"]
[Site "Lyon"]
[Date "2024.04.23"]
[Round "3.4"]
[White "Tahay, Alexis"]
[Black "Boyer, Mahel"]
[Result "0-1"]
[ECO "C07"]
[WhiteElo "2382"]
[BlackElo "2432"]
[Annotator "TA"]
[PlyCount "122"]
[EventDate "2024.04.23"]
[EventType "tourn"]
[EventCountry "FRA"]
[SourceTitle "playchess.com"]
[Source "ChessBase"]
[SourceQuality "1"]
[TimeControl "40/5400+30:1800+30"]

{[%evp 30,122,62,52,72,15,23,19,17,12,20,9,37,2,0,-3,3,3,11,0,0,-3,-4,-77,-75,-46,0,-62,-54,-52,-64,-66,-62,-52,-63,-63,-65,-68,-70,-63,-62,-69,-73,-85,-79,-75,-83,-75,-75,-83,-58,-106,-93,-143,0,-106,-121,-107,-114,-114,-87,-109,-108,-109,-108,-103,0,-164,-131,-372,-356,-395,-395,-387,-374,-927,-846,-957,-570,-1538,-1257,-1400,-1185,-1472,-1361,-2790,-2437,-29975,-29976,-29976,-29977,-29976,-29964,-6099,-4627]} 1. e4 {[%emt 0:00:10]} a6 {[%emt 0:00:07]} 2. d4 {[%emt 0:00:07]} e6 {[%emt 0:00:04]} 3. Nf3 {[%emt 0:02:01]} d5 {[%emt 0:00:05]} 4. Nbd2 {[%emt 0:00:05]} c5 {[%emt 0:00:04]} 5. Bd3 {[%emt 0:03:24]} c4 {[%emt 0:01:17]} 6. Be2 {[%emt 0:00:05] C07: French Tarrasch: 3...c5, 4 Ngf3 and 4 exd5 Qxd5.} dxe4 $146 {[%emt 0:02:05]} ({Predecessor:} 6... b5 7. exd5 exd5 8. Nf1 Bd6 9. Bg5 f6 10. Bh4 Ne7 11. Bg3 O-O 12. c3 Nbc6 13. Bxd6 Qxd6 {0-1 Birnboim,N (2367)-Hammer,J (2689) EU-ch 17th Gjakova 2016 (1)}) 7. Nxe4 {[%emt 0:00:18]} b5 {[%emt 0:00:01]} 8. b3 {[%emt 0:06:59]} Bb7 {[%emt 0:01:35]} 9. Ng3 {[%emt 0:00:52]} Bb4+ {[%emt 0:06:45]} 10. Bd2 {[%emt 0:00:29]} Bxd2+ {[%emt 0:00:03]} 11. Qxd2 {[%emt 0:00:08]} cxb3 {[%emt 0:00:02]} 12. axb3 {[%emt 0:00:08]} Nf6 {[%emt 0:00:03]} 13. O-O {[%emt 0:02:04]} O-O {[%emt 0:00:08]} 14. c4 {[%emt 0:02:47]} bxc4 {[%emt 0:08:51]} 15. bxc4 {[%emt 0:00:04]} Nbd7 {[%emt 0:00:34]} 16. Rfd1 {[%emt 0:04:35]} Qc7 {[%emt 0:02:20]} 17. Rac1 {[%emt 0:02:16]} (17. Qa5 $16 Qxa5 18. Rxa5) 17... Rfd8 $11 {[%emt 0:00:24]} 18. Qe3 {[%emt 0:01:42]} Rac8 {[%emt 0:07:05]} 19. Nd2 {[%emt 0:06:49]} a5 {[%emt 0:06:12]} 20. Bf3 {[%emt 0:09:52]} Rb8 {[%emt 0:07:37]} 21. Bxb7 {[%emt 0:03:12]} Rxb7 {[%emt 0:00:16]} 22. Nde4 {[%emt 0:03:28]} Rb4 {[%emt 0:06:30]} (22... a4 {feels hotter.} 23. d5 Nxe4 24. dxe6 Nxg3 25. exd7 Qc6) 23. d5 {[%emt 0:02:53]} Nxe4 {[%emt 0:00:43]} 24. Nxe4 {[%emt 0:00:47]} exd5 {[%emt 0:03:56]} 25. cxd5 {[%emt 0:00:27]} Qe5 {[%emt 0:00:05]} 26. Qg5 {[%emt 0:08:17]} (26. Nc5 $1 $11 Qxe3 27. fxe3) 26... Qxg5 $17 {[%emt 0:02:36]} 27. Nxg5 {[%emt 0:00:09]} Nf6 {[%emt 0:01:08]} (27... a4 $15 28. Ne6 Re8 (28... fxe6 29. dxe6 a3 30. exd7 $11)) 28. d6 {[%emt 0:00:46]} (28. Nf3 $1 $11) 28... h6 $1 $15 {[%emt 0:00:09]} 29. Nf3 {[%emt 0:00:04]} Rb6 {[%emt 0:00:12]} 30. g3 {[%emt 0:11:57]} Rbxd6 {[%emt 0:00:25]} 31. Rxd6 {[%emt 0:00:01]} Rxd6 {[%emt 0:00:04]} 32. Rc8+ {[%emt 0:00:05]} Kh7 {[%emt 0:00:03]} 33. Ra8 {[%emt 0:00:05]} Rd5 {[%emt 0:01:34]} 34. Ra7 {[%emt 0:00:42]} Nd7 {[%emt 0:00:23]} 35. h4 {[%emt 0:00:30]} g6 {[%emt 0:01:02]} 36. Kg2 {[%emt 0:04:08]} Kg7 {[%emt 0:00:16]} 37. g4 {[%emt 0:00:25]} Nf8 {[%emt 0:04:46]} 38. Ng1 {[%emt 0:06:55]} Ne6 {[%emt 0:06:36]} 39. Ne2 {[%emt 0:00:52]} h5 {[%emt 0:10:35]} 40. g5 {[%emt 0:00:11]} (40. gxh5 $15 Rxh5 41. Ng3 Rxh4 42. Rxa5) 40... Rd2 $17 {[%emt 0:01:52]} 41. Kf1 {[%emt 0:35:16]} ({White should play} 41. Ng1) 41... Rd5 {[%emt 0:32:30]} ({Better is} 41... Rc2 $17 42. Rxa5 Rc4) 42. f3 {[%emt 0:02:34]} (42. Kg2 $11) 42... Rc5 {[%emt 0:02:30]} 43. Kf2 {[%emt 0:06:39]} Rc2 {[%emt 0:01:03]} 44. Ke3 {[%emt 0:00:31]} (44. Rxa5 $2 {perishes.} Nf4 45. Ke3 Nxe2 $19) 44... Ra2 {[%emt 0:00:19]} 45. f4 {[%emt 0:06:14]} a4 {[%emt 0:04:02]} 46. Ra8 {[%emt 0:00:00]} Nc7 {[%emt 0:00:00]} 47. Ra5 {[%emt 0:00:00]} Ne6 {[%emt 0:00:00]} (47... Ra3+ $17 48. Ke4 Ra1) 48. Kd3 $2 {[%emt 0:00:00]} (48. Ra8 $1 $11 {and White stays safe.}) 48... Ra3+ {[%emt 0:00:00]} 49. Ke4 $2 {[%emt 0:00:00]} (49. Kd2 $17) 49... Rh3 $19 {[%emt 0:00:00]} 50. Nd4 {[%emt 0:00:00]} Nxd4 {[%emt 0:00:00]} ({Worse is} 50... Rxh4 51. Nxe6+ fxe6 52. Ra7+ Kf8 53. Rxa4 $11) 51. Kxd4 {[%emt 0:00:00]} Ra3 {[%emt 0:00:00]} ({Not} 51... Rxh4 52. Ke4 $17) 52. f5 $2 {[%emt 0:00:00]} (52. Ra8 Ra1 53. Ke3) 52... gxf5 $19 {[%emt 0:00:00]} 53. Rxf5 {[%emt 0:00:00]} Rh3 {[%emt 0:00:00]} 54. Rf4 {[%emt 0:00:00]} Rg3 {[%emt 0:00:00]} 55. Ke5 {[%emt 0:00:00]} Rg4 {[%emt 0:00:00]} 56. Rf6 {[%emt 0:00:00]} Rxh4 {[%emt 0:00:00]} 57. Ra6 {[%emt 0:00:00]} Rb4 {[%emt 0:00:00]} 58. Kf5 {[%emt 0:00:00]} h4 {[%emt 0:00:00]} 59. g6 {[%emt 0:00:00]} h3 {[%emt 0:00:00]} 60. gxf7 {[%emt 0:00:30]} Kxf7 {[%emt 0:00:00]} 61. Ra7+ {[%emt 0:00:36]} Ke8 {[%emt 0:00:00]} 0-1

[Event "1st Festival ChessInLyon-GM 2024"]
[Site "Lyon"]
[Date "2024.04.24"]
[Round "4.1"]
[White "Droin, Augustin"]
[Black "Tahay, Alexis"]
[Result "1-0"]
[ECO "B55"]
[WhiteElo "2478"]
[BlackElo "2382"]
[Annotator "TA"]
[PlyCount "43"]
[EventDate "2024.04.23"]
[EventType "tourn"]
[EventCountry "FRA"]
[SourceTitle "playchess.com"]
[Source "ChessBase"]
[SourceQuality "1"]
[TimeControl "40/5400+30:1800+30"]

{[%evp 9,43,0,20,6,0,6,15,2,16,13,21,34,20,0,0,-12,-15,-42,0,0,0,0,0,-120,6,8,5,17,2297,0,44,45,452,30,43,-436]} 1. e4 {[%emt 0:00:35]} c5 {[%emt 0:00:04]} 2. Nf3 {[%emt 0:00:08][%cal Bg1f3,Bf3d4,Bd4b5][%mdl 32]} d6 {[%emt 0:00:03]} 3. d4 {[%emt 0:00:05]} cxd4 {[%emt 0:00:03]} 4. Nxd4 {[%emt 0:00:04]} Nf6 {[%emt 0:00:03]} 5. Bb5+ {[%emt 0:00:04]} Bd7 {[%emt 0:00:42]} 6. c4 {[%emt 0:00:06]} Bxb5 {[%emt 0:00:21]} (6... e5 {feels hotter.} 7. Nf5 Nxe4 8. Qd5 Bxb5 9. cxb5 Nc5) 7. Nxb5 {[%emt 0:00:47]} Nc6 {[%emt 0:02:04]} 8. N1c3 {[%emt 0:02:09] The position is equal.} a6 {[%emt 0:02:10]} 9. Nd4 {[%emt 0:00:18]} g6 {[%emt 0:00:17]} 10. Nxc6 {[%emt 0:06:29]} bxc6 {[%emt 0:00:08]} 11. c5 {[%emt 0:00:01]} Bg7 {[%emt 0:05:54]} 12. Qa4 {[%emt 0:03:02]} O-O {[%emt 0:03:12]} 13. Qxc6 {[%emt 0:05:51]} dxc5 {[%emt 0:07:28] ...Qd3 is the strong threat.} 14. Qxc5 {[%emt 0:11:05]} Rc8 {[%emt 0:12:32]} 15. Qe3 {[%emt 0:00:16]} Qc7 {[%emt 0:00:20]} 16. Qe2 {[%emt 0:04:55] Inhibits Ng4.} (16. O-O $11 {keeps the balance.}) 16... Nd7 {[%emt 0:11:27]} (16... Nxe4 $1 $17 17. O-O Nxc3 18. bxc3 Qxc3 (18... Bxc3 19. Rb1 $17)) 17. O-O $11 {[%emt 0:01:40]} Qc4 {[%emt 0:01:54] Wards off Nd5} 18. Qxc4 {[%emt 0:07:30]} Rc7 $4 {[%emt 0:50:48][%mdl 8192] [#]} 19. Qc5 $2 Rxc5 {[%emt 0:00:00]} 20. Rd1 {[%emt 0:01:01]} Rc4 $2 {[%emt 0:00:00][%mdl 8192]} 21. f3 $2 {[%emt 0:00:06]} (21. Rxd7 $18 Re8 22. Bd2) 21... Nc5 {[%emt 0:00:00] [#]} 22. Na4 $2 {[%emt 0:01:09][%mdl 40960] Weighted Error Value: White=0.81/Black=0.62.  Loses game:     	White=1     	Black=2      Missed win:     	White=2     	---        Mistake:       	White=1     	Black=1      Inaccurate:     	White=1     	Black=2      OK:         	White=6     	Black=5     . Loss on time!?} 1-0

[Event "1st Festival ChessInLyon-GM 2024"]
[Site "Lyon"]
[Date "2024.04.24"]
[Round "4.2"]
[White "Boyer, Mahel"]
[Black "Vlachos, Anatole"]
[Result "1/2-1/2"]
[ECO "A14"]
[WhiteElo "2432"]
[BlackElo "2482"]
[Annotator "TA"]
[PlyCount "81"]
[EventDate "2024.04.23"]
[EventType "tourn"]
[EventCountry "FRA"]
[SourceTitle "playchess.com"]
[Source "ChessBase"]
[SourceQuality "1"]
[TimeControl "40/5400+30:1800+30"]

{[%evp 11,81,10,8,15,17,3,30,16,10,0,16,8,97,107,124,118,132,114,146,148,159,155,145,153,163,162,163,155,202,208,197,217,205,169,226,177,191,112,105,95,91,77,91,93,93,77,58,11,18,21,12,17,11,4,5,7,12,12,7,0,0,0,0,0,0,0,0,0,0,0,0,0]} 1. Nf3 {[%emt 0:07:22]} d5 {[%emt 0:00:09]} 2. g3 {[%emt 0:00:06]} Nf6 {[%emt 0:02:37]} 3. Bg2 {[%emt 0:00:15]} e6 {[%emt 0:01:53]} 4. O-O {[%emt 0:00:41]} Be7 {[%emt 0:00:04]} 5. c4 {[%emt 0:00:59]} O-O {[%emt 0:00:12]} 6. b3 {[%emt 0:00:55]} b6 {[%emt 0:00:04]} 7. cxd5 {[%emt 0:07:23]} Nxd5 {[%emt 0:00:52]} 8. d4 {[%emt 0:01:28]} Bb7 {[%emt 0:00:57]} 9. Re1 {[%emt 0:00:10] White has an edge.} c5 {[%emt 0:02:22]} 10. e4 {[%emt 0:01:03][%cal Be2e4,Be4e5][%mdl 32]} Nf6 {[%emt 0:01:47]} 11. Nc3 {[%emt 0:00:17][%cal Od4d5]} Nbd7 {[%emt 0:09:52]} (11... Nc6 $11) 12. d5 $16 {[%emt 0:03:28]} exd5 {[%emt 0:26:00]} 13. e5 {[%emt 0:05:20]} (13. Nxd5 Nxd5 14. exd5 Nf6 $11) 13... Ne8 {[%emt 0:00:06]} 14. Nxd5 {[%emt 0:00:09]} Nc7 {[%emt 0:00:04]} 15. Nxc7 {[%emt 0:05:03]} Qxc7 {[%emt 0:00:12]} 16. Bf4 {[%emt 0:00:02]} Qc8 {[%emt 0:07:39]} 17. Qe2 $1 {[%emt 0:22:05] aiming for Rad1.} Nb8 {[%emt 0:07:31]} 18. e6 {[%emt 0:07:15]} fxe6 {[%emt 0:01:38]} 19. Rad1 {[%emt 0:07:06] Strongly threatening Bh3.} Nc6 {[%emt 0:04:53]} (19... Kh8 $16 {was worth a try.} 20. Qxe6 Qxe6 21. Rxe6 Bf6) 20. Bh3 $1 $18 {[%emt 0:00:43][%mdl 1024] White has strong compensation.} Nd8 {[%emt 0:00:05]} 21. Ne5 {[%emt 0:03:35] Rd7 is the strong threat.} (21. Bxe6+ $2 Nxe6 22. Qxe6+ Qxe6 23. Rxe6 Bxf3 $19) 21... Bf6 {[%emt 0:08:25] [#]} 22. Rd6 $1 {[%emt 0:00:03]} Ba6 {[%emt 0:03:50]} (22... Bxe5 $142 23. Qxe5 (23. Bxe5 Bc6 $18) 23... Qc7) 23. Qd2 {[%emt 0:10:04] Black must now prevent Nd7.} Bb5 {[%emt 0:02:24]} 24. Rd1 {[%emt 0:00:17]} (24. a4 $18 Be8 25. Nd7 Bxd7 26. Rxd7) 24... Be7 $16 {[%emt 0:02:14] [#]} 25. Rxe6 $3 {[%emt 0:03:30][%mdl 512]} Nxe6 {[%emt 0:02:00]} 26. Qd5 {[%emt 0:00:02]} Kh8 {[%emt 0:05:50]} 27. Bxe6 {[%emt 0:00:34]} Qd8 {[%emt 0:01:41] [#]} 28. Qf3 {[%emt 0:01:27] White is much more active.} Qe8 {[%emt 0:00:01] Against Nf7+} 29. a4 {[%emt 0:03:50]} (29. Nf7+ $14 Rxf7 30. Bxf7) 29... Bf6 $1 $11 {[%emt 0:00:49] The position is equal.} 30. Nf7+ {[%emt 0:06:43]} Rxf7 {[%emt 0:00:05]} 31. Bxf7 {[%emt 0:00:02]} (31. axb5 $2 Rf8 32. Qc6 Bd4 $17) 31... Bc6 {[%emt 0:00:11]} 32. Bd5 {[%emt 0:00:52]} (32. Qh5 {with more complications.} Qe7 33. Bd5 Be8 34. Qf3) 32... Bxd5 {[%emt 0:01:46]} 33. Rxd5 {[%emt 0:00:04][%cal Of4e5]} Rd8 {[%emt 0:00:34]} 34. Rxd8 {[%emt 0:02:41]} (34. Kg2 {simplifies} h6 35. Rxd8 Qxd8 36. g4) 34... Qxd8 {[%emt 0:00:04][%mdl 4096] Endgame. KQB-KQB} 35. Qb7 {[%emt 0:01:44][%cal Of4b8]} (35. g4 {simplifies} h6 36. Kg2 Qe7 37. Qa8+) 35... Qd1+ {[%emt 0:06:15]} 36. Kg2 {[%emt 0:00:01] Hoping for Qa8+.} Qxb3 {[%emt 0:00:06]} 37. a5 {[%emt 0:00:01] Threatens to win with h4.} g5 {[%emt 0:01:14]} 38. Bb8 {[%emt 0:01:00]} Qa2 {[%emt 0:02:15]} 39. Qa8 {[%emt 0:01:00]} ({Reject} 39. Qxa7 Bd4 $15 (39... Qxa5 40. Qf7 $11) (39... bxa5 40. Qxc5 Kg8 41. Be5 $14) (39... Qxa5 40. Qf7 $11) (39... bxa5 40. Qxc5 Kg8 41. Bc7 $14)) 39... bxa5 {[%emt 0:00:37]} 40. Be5+ {[%emt 0:00:38]} Kg7 {[%emt 0:00:02]} 41. Qxa7+ {[%emt 0:03:17] Blacks defense is rewarded with a draw.   Weighted Error Value: White=0.08 (flawless) /Black=0.10 (very precise) .  Mistake:       	White=2     	Black=3      OK:         	White=8     	Black=18     Best:        	White=6     	Black=4      Strong:       	White=3     	Black=1} 1/2-1/2

[Event "1st Festival ChessInLyon-GM 2024"]
[Site "Lyon"]
[Date "2024.04.24"]
[Round "4.3"]
[White "Crut, Aurelien"]
[Black "Gatineau, Yovann"]
[Result "0-1"]
[ECO "C07"]
[WhiteElo "2312"]
[BlackElo "2408"]
[Annotator "ChessBase"]
[PlyCount "110"]
[EventDate "2024.04.23"]
[EventType "tourn"]
[EventCountry "FRA"]
[SourceTitle "playchess.com"]
[Source "ChessBase"]
[SourceQuality "1"]
[TimeControl "40/5400+30:1800+30"]

1. e4 {[%emt 0:00:02]} e6 {[%emt 0:07:18]} 2. d4 {[%emt 0:00:10]} d5 {[%emt 0:00:14]} 3. Nd2 {[%emt 0:00:22]} c5 {[%emt 0:00:15]} 4. Ngf3 {[%emt 0:00:35]} cxd4 {[%emt 0:00:06]} 5. Nxd4 {[%emt 0:00:27]} Nc6 {[%emt 0:00:17]} 6. Bb5 {[%emt 0:00:50]} Bd7 {[%emt 0:00:18]} 7. Nxc6 {[%emt 0:00:29]} bxc6 {[%emt 0:00:06]} 8. Bd3 {[%emt 0:00:10]} Qc7 {[%emt 0:00:26]} 9. Qe2 {[%emt 0:02:42]} Ne7 {[%emt 0:00:44]} 10. Nf3 {[%emt 0:06:57]} Ng6 {[%emt 0:00:36]} 11. O-O {[%emt 0:11:33]} Be7 {[%emt 0:00:58]} 12. e5 {[%emt 0:06:30]} f6 {[%emt 0:04:01]} 13. Bxg6+ {[%emt 0:13:42]} hxg6 {[%emt 0:00:08]} 14. Re1 {[%emt 0:02:04]} g5 {[%emt 0:06:13]} 15. h3 {[%emt 0:04:47]} Kf7 {[%emt 0:01:14]} 16. c4 {[%emt 0:07:00]} Rac8 {[%emt 0:24:50]} 17. Bd2 {[%emt 0:04:51]} Qb8 {[%emt 0:01:40]} 18. b3 {[%emt 0:05:41]} Rh7 {[%emt 0:05:06]} 19. cxd5 {[%emt 0:07:24]} cxd5 {[%emt 0:00:08]} 20. Nd4 {[%emt 0:04:25]} Qb6 {[%emt 0:24:12]} 21. Be3 {[%emt 0:04:22]} Bc5 {[%emt 0:02:59]} 22. Qd3 {[%emt 0:02:15]} Rh4 {[%emt 0:03:02]} 23. Nf3 {[%emt 0:02:48]} Rhh8 {[%emt 0:05:16]} 24. Bxc5 {[%emt 0:01:12]} Qxc5 {[%emt 0:00:33]} 25. Qd2 {[%emt 0:04:19]} Qc3 {[%emt 0:01:16]} 26. Rad1 {[%emt 0:01:42]} Qxd2 {[%emt 0:01:04]} 27. Rxd2 {[%emt 0:00:04]} Rc3 {[%emt 0:00:49]} 28. Red1 {[%emt 0:02:58]} Rhc8 {[%emt 0:01:15]} 29. Kf1 {[%emt 0:01:04]} Bb5+ {[%emt 0:02:06]} 30. Kg1 {[%emt 0:00:45]} Rc1 {[%emt 0:02:36]} 31. Rxc1 {[%emt 0:00:59]} Rxc1+ {[%emt 0:00:01]} 32. Kh2 {[%emt 0:00:02]} Rc3 {[%emt 0:01:30]} 33. Rd4 {[%emt 0:01:38]} Be2 {[%emt 0:03:51]} 34. exf6 {[%emt 0:00:58]} Bxf3 {[%emt 0:00:38]} 35. gxf3 {[%emt 0:00:17]} gxf6 {[%emt 0:00:16]} 36. Kg2 {[%emt 0:00:35]} Kg6 {[%emt 0:00:24]} 37. h4 {[%emt 0:00:36]} gxh4 {[%emt 0:01:26]} 38. Rxh4 {[%emt 0:00:18]} e5 {[%emt 0:00:48]} 39. Ra4 {[%emt 0:00:38]} Rc7 {[%emt 0:00:07]} 40. Kf1 {[%emt 0:00:36]} Kf5 {[%emt 0:00:20]} 41. Ra6 {[%emt 0:04:50]} d4 {[%emt 0:04:18]} 42. Ke1 {[%emt 0:09:49]} Rf7 {[%emt 0:07:15]} 43. Ke2 {[%emt 0:08:17]} Kf4 {[%emt 0:00:16]} 44. Rd6 {[%emt 0:04:39]} f5 {[%emt 0:00:34]} 45. Rd5 {[%emt 0:01:33]} Rc7 {[%emt 0:01:34]} 46. Ra5 {[%emt 0:00:35]} Rc2+ {[%emt 0:04:01]} 47. Ke1 {[%emt 0:00:39]} Rb2 {[%emt 0:01:23]} 48. b4 {[%emt 0:01:22]} Rxb4 {[%emt 0:01:28]} 49. Ra3 {[%emt 0:01:49]} Rb2 {[%emt 0:00:49]} 50. Rxa7 {[%emt 0:01:20]} Kxf3 {[%emt 0:00:30]} 51. Ra3+ {[%emt 0:00:06]} Ke4 {[%emt 0:00:15]} 52. Ra5 {[%emt 0:00:54]} d3 {[%emt 0:02:06]} 53. Ra3 {[%emt 0:00:42]} Kd4 {[%emt 0:00:30]} 54. Ra5 {[%emt 0:00:37]} f4 {[%emt 0:02:25]} 55. Ra4+ {[%emt 0:00:23]} Kc3 {[%emt 0:00:19]} 0-1

[Event "1st Festival ChessInLyon-GM 2024"]
[Site "Lyon"]
[Date "2024.04.24"]
[Round "4.4"]
[White "Shyaamnikhil P"]
[Black "Pourramezanali, Amirreza"]
[Result "0-1"]
[ECO "B17"]
[WhiteElo "2390"]
[BlackElo "2502"]
[Annotator "TA"]
[PlyCount "94"]
[EventDate "2024.04.23"]
[EventType "tourn"]
[EventCountry "FRA"]
[SourceTitle "playchess.com"]
[Source "ChessBase"]
[SourceQuality "1"]
[TimeControl "40/5400+30:1800+30"]

{[%evp 10,94,43,10,23,26,27,25,25,27,43,47,49,27,45,37,60,66,63,40,41,44,48,43,47,40,116,68,160,158,160,0,0,0,0,0,0,-208,-207,-354,-345,-337,-364,-367,-358,-362,-367,-371,-361,-391,-251,-222,-235,-241,-200,-184,-166,-414,-400,-515,-253,-264,-258,-412,-386,-449,-453,-543,-459,-797,-808,-791,-478,-493,-480,-449,-477,-502,-500,-546,-577,-576,-564,-643,-654,-831,-866]} 1. e4 {[%emt 0:00:14]} c6 {[%emt 0:00:06]} 2. d4 {[%emt 0:04:32]} d5 {[%emt 0:00:06]} 3. Nd2 {[%emt 0:00:19]} dxe4 {[%emt 0:00:07]} 4. Nxe4 {[%emt 0:00:03]} Nd7 {[%emt 0:00:17][%cal Bb8d7,Bd7b6,Bb6d5][%mdl 32]} 5. Nf3 {[%emt 0:01:33]} Ngf6 {[%emt 0:00:08]} 6. Ned2 {[%emt 0:02:23]} g6 {[%emt 0:03:49]} 7. g3 {[%emt 0:05:59]} Bg7 {[%emt 0:00:11]} 8. Bg2 {[%emt 0:00:06]} O-O {[%emt 0:00:53] White has an edge.} 9. O-O {[%emt 0:01:22]} Nb6 {[%emt 0:30:04][%cal Oe7e5]} 10. Re1 {[%emt 0:03:34]} Re8 {[%emt 0:03:23][%cal Oe7e5]} 11. h3 {[%emt 0:07:38]} a5 {[%emt 0:05:52]} 12. a4 {[%emt 0:01:45]} h6 {[%emt 0:09:46]} 13. c4 {[%emt 0:13:43][%cal Bc2c4,Bc4c5][%mdl 32]} Nh7 {[%emt 0:05:24][%cal Bf6h7,Bh7f8,Bf8e6][%mdl 32]} 14. c5 {[%emt 0:03:51]} Nd5 {[%emt 0:00:17]} 15. Nc4 {[%emt 0:00:12]} Nf8 {[%emt 0:01:28]} 16. Bd2 {[%emt 0:06:16]} Be6 {[%emt 0:02:10][%cal Od5f4]} 17. Nfe5 {[%emt 0:10:12]} Kh7 {[%emt 0:10:00]} (17... h5 $14) 18. Ra3 {[%emt 0:08:09]} (18. Qb3 $16 Qc7 19. Qc2) 18... f6 {[%emt 0:03:07] [#]} ({Black should play} 18... Nb4 $14) 19. Nxg6 $1 $16 {[%emt 0:07:36][%mdl 512]} Kxg6 {[%emt 0:00:16] [#]} 20. Rxe6 $1 {[%emt 0:00:08][%mdl 512]} Nxe6 $11 {[%emt 0:00:12]} 21. Be4+ {[%emt 0:00:16] This pair of bishops is nice.} Kf7 {[%emt 0:00:13]} 22. Qh5+ {[%emt 0:00:05]} Kg8 {[%emt 0:04:45] Threatens to win with ...Nf8.} 23. Qg4 $2 {[%emt 0:07:17] [#] Black keeps a firm grip on the game.} (23. Bxh6 $11 Bxh6 24. Qxh6) 23... f5 $1 $19 {[%emt 0:09:33]} (23... Nxd4 24. Bxh6) 24. Bxf5 {[%emt 0:00:48]} (24. Qxf5 $142 Nf8 25. Bd3 (25. Rf3 $2 Nf6 $19)) 24... Nxd4 {[%emt 0:00:06]} 25. Be6+ {[%emt 0:00:53]} Kh8 {[%emt 0:05:04] And now ...Nf6 would win.} 26. Bxh6 {[%emt 0:01:14][%csl Gh6][%cal Rg4g7]} Nxe6 {[%emt 0:03:27]} (26... Bxh6 27. Qh5 Kh7 28. Ne5 $16) 27. Qxe6 {[%emt 0:00:12] Black must now prevent Bxg7+.} Nf6 {[%emt 0:00:03]} 28. Bxg7+ {[%emt 0:01:54]} Kxg7 {[%emt 0:00:02]} 29. Ne5 {[%emt 0:00:08]} Qd1+ {[%emt 0:00:45]} 30. Kh2 {[%emt 0:00:07] Qf7+ would kill now.} Qd5 {[%emt 0:00:17]} 31. Qf5 {[%emt 0:00:04]} Rh8 {[%emt 0:01:24][%cal Be8h8,Bh8h7,Bh7g7][%mdl 32]} (31... Qxc5 32. Qg6+ Kh8 33. Nf7#) 32. g4 {[%emt 0:05:18]} Rh7 {[%emt 0:03:15][%cal Og7g8] Strongly threatening ...Kg8!} (32... Qxc5 33. Qg6+ Kf8 34. Qf7#) 33. Rd3 $2 {[%emt 0:00:54]} (33. Qg5+ Kf8 34. Re3) 33... Qe4 {[%emt 0:00:00] ...Qxf5 would now be deadly.} (33... Qxc5 $2 {is the wrong capture.} 34. Qg5+ Kf8 35. Ng6+ Ke8 36. Qxc5 $18) 34. Qg5+ {[%emt 0:00:20]} Kf8 {[%emt 0:00:00]} (34... Kh8 $142 35. Ng6+ Kg8 36. Ne5+ Rg7) 35. Re3 {[%emt 0:05:16]} Rg7 $1 {[%emt 0:00:53]} ({Not} 35... Qxa4 36. Ng6+ Ke8 37. Qxf6 Kd8 38. Nxe7) 36. Qh6 {[%emt 0:01:37]} (36. Nd7+ {only move.} Nxd7 37. Qxg7+ Kxg7 38. Rxe4) 36... Qh7 {[%emt 0:00:14]} ({And not} 36... Qxa4 37. Ng6+ Ke8 38. Qxg7) 37. Qf4 {[%emt 0:00:12]} Kg8 {[%emt 0:00:19] Black is clearly winning.} 38. Qd4 {[%emt 0:02:05]} Nd5 {[%emt 0:00:37]} 39. Re4 {[%emt 0:00:06]} (39. Rf3 $142) 39... Rf8 {[%emt 0:00:25] Hoping for ...Qh4.} 40. f4 {[%emt 0:00:07]} Qh4 {[%emt 0:00:28] ( -> ...Rh7)} 41. Nf3 {[%emt 0:30:19]} Qf6 {[%emt 0:30:14]} 42. f5 {[%emt 0:00:07]} Qxd4 {[%emt 0:00:00]} 43. Nxd4 {[%emt 0:00:00]} Nf6 {[%emt 0:00:00]} 44. Rf4 {[%emt 0:00:00]} Rd8 {[%emt 0:00:00]} 45. Kg2 {[%emt 0:00:00]} Rd5 {[%emt 0:00:00]} 46. Kf3 {[%emt 0:00:00]} Nd7 {[%emt 0:00:00]} 47. h4 {[%emt 0:00:00]} Ne5+ {[%emt 0:00:00] Weighted Error Value: White=0.58/Black=0.46.  Loses game:     	White=1     	---        Mistake:       	White=6     	Black=3      Inaccurate:     	---       	Black=1      OK:         	White=14    	Black=16     Best:        	White=3     	Black=6      Strong:       	---       	Black=2} 0-1